Cogmind - Beta 12 X1 @@@ ROGUE MODE // 2022.07.28 @ 17:37:03 Player: Exp. Geonium Core Result: Destroyed by G-67 Veteran with Field Laser Performance ------------- Evolutions (7) 3500 Regions Visited (19) 3800 Robots Destroyed (97) 485 Value Destroyed (6944) 6944 Prototype IDs (30) 600 Alien Tech Used (0) 0 Bonus (8657) 8657 TOTAL SCORE: 23986 Bonus ------- High Alert Combat Kills 562 Follower Combat Kills 2895 Entered Garrisons 1400 Used RIF Installer 3500 Aligned with FarCom 300 Cogmind --------- Core Integrity 0/1300 Matter 285/300 Energy 43/100 System Corruption 0% Temperature Cool (0) Movement Core (50) Location -3/Garrison Parts ------- > --- POWER (1) -------- (None) > --- PROPULSION (4) --- (None) > --- UTILITY (14) ----- Advanced Heat Sink Advanced Heat Sink Improved Targeting Computer Graphene Brace Relay Coupler [NC] (12) Relay Coupler [Grunt] (25) Relay Coupler [Duelist] (35) Relay Coupler [Sentry] (23) Relay Coupler [Sentry] (24) Relay Coupler [Demolisher] (26) Relay Coupler [Hunter] (23) Relay Coupler [Hunter] (17) > --- WEAPON (2) ------- (None) > --- INVENTORY (5) ---- Relay Coupler [NC] (29) Relay Coupler [Brawler] (25) Advanced Datajack Improved Remote Datajack Advanced Remote Datajack Peak State ------------ > --- POWER ------------ Light Antimatter Reactor > --- PROPULSION ------- Flexi-carbon Leg Armored Huge Wheel Centrium Wheel > --- UTILITY ---------- High-capacity Storage Unit Graphene Brace Hacking Suite Relay Coupler [NC] Relay Coupler [Swarmer] Relay Coupler [Brawler] Relay Coupler [Duelist] Relay Coupler [Sentry] Relay Coupler [Demolisher] Relay Coupler [Hunter] > --- WEAPON ----------- Power Sword Molecular Scythe > --- INVENTORY -------- Graphene Brace Relay Coupler [NC] Relay Coupler [NC] Relay Coupler [NC] Relay Coupler [NC] Relay Coupler [NC] Relay Coupler [Swarmer] Relay Coupler [Swarmer] Relay Coupler [Cutter] Relay Coupler [Brawler] Relay Coupler [Brawler] Relay Coupler [Duelist] Relay Coupler [Sentry] Relay Coupler [Sentry] Relay Coupler [Specialist] Advanced Datajack Remote Datajack Improved Remote Datajack [Rating: 81] Favorites ----------- Power Light Nuclear Core Engine Improved Deuterium Engine Power Core Light Nuclear Core Reactor Light Quantum Reactor Propulsion Armored Treads Treads Armored Treads Leg Aluminum Leg Wheel Armored Wheel Hover Unit Improved Antigrav System Flight Unit Xenon Bombardment Thruster Utility Hacking Suite Device Graphene Brace Storage High-capacity Storage Unit Processor Advanced Targeting Computer Hackware Hacking Suite Protection Improved Medium Armor Plating Weapon Chainsword Energy Gun Medium Laser Energy Cannon Guided Plasma Cannon Ballistic Gun Autogun Launcher Mini Grenade Launcher Special Weapon Improved Remote Datajack Slashing Weapon Chainsword Special Melee Weapon Improved Datajack Build | -11 -10 -10 -10 -9 -8 -8 -7 -7 -7 -6 -6 -5 -5 -5 -5 -4 -4 -3 -3 ------- Run | Scr Mat Min Exi Min Mat Gar Fac Gar Fac Fac Gar Fac Gar Fac Gar Fac Gar Res Gar Slots Evolved 14 | . . . . . 4 . 2 . . 2 . 2 . . . 2 . 2 . Power . | . . . . . . . . . . . . . . . . . . . . Propulsion 2 | . . . . . 2 . . . . . . . . . . . . . . Utility 12 | . . . . . 2 . 2 . . 2 . 2 . . . 2 . 2 . Weapon . | . . . . . . . . . . . . . . . . . . . . Parts Attached 201 | . . 1 5 1 19 16 26 26 4 7 20 4 18 1 2 5 19 . 27 Power 16 | . . 1 . . 1 2 2 3 . 1 1 . 2 . . 1 1 . 1 Engine 4 | . . 1 . . . . . . . 1 1 . . . . . . . 1 Core 8 | . . . . . 1 2 2 3 . . . . . . . . . . . Reactor 4 | . . . . . . . . . . . . . 2 . . 1 1 . . Propulsion 55 | . . . 2 . 8 7 6 8 . . 7 . 5 1 1 . 4 . 6 Treads 25 | . . . 1 . 8 4 3 1 . . 2 . 5 . . . 1 . . Leg 16 | . . . . . . 3 3 7 . . . . . . . . 2 . 1 Wheel 11 | . . . 1 . . . . . . . 5 . . 1 1 . 1 . 2 Hover 2 | . . . . . . . . . . . . . . . . . . . 2 Flight 1 | . . . . . . . . . . . . . . . . . . . 1 Utility 63 | . . . . 1 4 2 3 6 3 3 8 1 9 . 1 2 8 . 12 Device 6 | . . . . . . . . . . . 1 . 1 . . . 1 . 3 Storage 2 | . . . . . . . . . . 1 1 . . . . . . . . Processor 6 | . . . . 1 2 . . 2 . . . . . . . . . . 1 Hackware 44 | . . . . . 2 2 1 3 3 2 5 1 7 . 1 2 7 . 8 Protection 5 | . . . . . . . 2 1 . . 1 . 1 . . . . . . Artifact . | . . . . . . . . . . . . . . . . . . . . Weapon 67 | . . . 3 . 6 5 15 9 1 3 4 3 2 . . 2 6 . 8 Energy Gun 5 | . . . 1 . . . . 1 . . . 1 . . . . . . 2 Energy Cannon 8 | . . . 1 . 1 2 2 2 . . . . . . . . . . . Ballistic Gun 13 | . . . . . 1 2 5 2 . 1 . . . . . . . . 2 Ballistic Cannon . | . . . . . . . . . . . . . . . . . . . . Launcher 4 | . . . . . 1 1 . . . 1 1 . . . . . . . . Special Weapon 24 | . . . 1 . 1 . 7 3 1 . 2 1 1 . . 1 3 . 3 Impact Weapon . | . . . . . . . . . . . . . . . . . . . . Slashing Weapon 11 | . . . . . 2 . 1 1 . 1 1 1 1 . . 1 1 . 1 Piercing Weapon . | . . . . . . . . . . . . . . . . . . . . Special Melee Weapon 2 | . . . . . . . . . . . . . . . . . 2 . . Unidentified Prototypes 3 | . . . . . 1 . 1 . . . . . . . . . 1 . . Parts Lost 86 | . . 1 . . 3 11 7 13 . 2 4 1 4 . 1 5 19 . 15 Power 12 | . . 1 . . . 2 1 2 . 1 1 . . . . 1 2 . 1 Propulsion 34 | . . . . . 3 5 3 4 . 1 3 . 3 . 1 . 7 . 4 Utility 25 | . . . . . . 2 1 4 . . . 1 1 . . 2 6 . 8 Weapon 15 | . . . . . . 2 2 3 . . . . . . . 2 4 . 2 Highest Loss Streak 10 | . . 1 . . 2 5 2 10 . 1 2 1 1 . 1 5 6 . 8 To Critical Strikes . | . . . . . . . . . . . . . . . . . . . . Average Slot Usage (%) 86 | . 85 84 84 78 89 86 85 83 94 94 91 90 91 98 94 77 76 42 47 Engine 2 | . 14 13 14 14 4 . . . . . 3 5 2 . . . . . . Core 2 | . . . . . 4 6 4 5 7 4 . . . . . . . . . Reactor 1 | . . . . . . . . . . . . . 2 5 5 4 3 . . Treads 11 | . . . 6 14 27 27 15 12 . . 2 11 17 20 6 5 2 . . Leg 7 | . 28 28 14 . . 3 12 13 30 25 2 . . . . . 4 . 1 Wheel 4 | . . . 6 14 3 . . . . . 20 11 1 1 9 10 6 . 2 Device 1 | . . . . . . . . . . . . 5 4 5 5 5 4 4 8 Storage 4 | . 14 14 14 14 9 5 . . . 3 4 5 5 5 5 5 4 . . Processor 3 | . . . . 7 22 9 4 2 13 . . . . . . . . . 1 Hackware 27 | . . . . . 3 16 27 31 19 42 43 39 40 41 46 37 41 38 23 Protection 1 | . . . . . . . 5 3 7 2 . . 1 5 . . . . . Energy Gun 2 | . 14 14 13 14 3 . . 2 . . . . . . . . . . . Energy Cannon 1 | . . . 6 . 5 4 3 3 . . . . . . . . . . . Ballistic Gun 3 | . 14 14 7 . . 7 5 1 7 5 . . . . . . . . 2 Special Weapon 2 | . . . . . . . 1 . 6 1 3 5 5 5 5 5 1 . 1 Slashing Weapon 3 | . . . . . 4 1 1 4 . 3 5 3 4 5 5 2 5 . . Naked Turns . | . . . . . . . . . . . . . . . . . . . . Heaviest Build 70 | 12 12 14 22 18 28 23 39 39 18 61 61 57 70 70 70 63 63 1 19 Greatest Support 112 | 20 20 20 20 20 112 112 62 62 60 60 50 24 89 89 40 40 44 3 25 Greatest Overweight (x) 4 | . . . 2 1 1 2 1 1 . 1 4 2 4 2 2 1 3 . 3 Average Overweight (x) . | . . . . . . . . . . . . 2 1 . 1 1 1 . . Largest Inventory Capacity 20 | . 8 8 8 8 8 8 5 5 5 20 20 20 20 20 20 20 20 5 5 Average Capacity 11 | . 8 8 8 8 8 6 5 5 5 12 16 20 20 20 20 20 18 5 5 Most Carried 20 | . 6 8 8 7 8 8 5 5 5 6 20 20 20 20 20 20 19 5 5 Average Carried 9 | . 6 6 7 7 7 5 4 4 4 5 9 18 17 19 18 18 15 5 4 Final Capacity 20 | 8 8 8 8 8 8 5 5 5 5 20 20 20 20 20 20 20 5 5 5 Final Carried 20 | 6 6 8 7 7 6 5 4 5 5 6 20 19 20 18 20 19 5 5 5 Class Distribution -------------------- 38% | Botlord-Mutant 30% | Mutant 15% | Scavenger-Mutant 12% | Bothacker-Mutant 3% | Hacker-Mutant Dominant Class ---------------- Mutant | -10/Materials Mutant | -10/Mines Mutant | -10/Exiles Mutant | -9/Mines Mutant | -8/Materials Scavenger-Mutant | -8/Garrison Mutant | -7/Factory Bothacker-Mutant | -7/Garrison Scavenger-Mutant | -7/Factory Bothacker-Mutant | -6/Factory Botlord-Mutant | -6/Garrison Botlord-Mutant | -5/Factory Botlord-Mutant | -5/Garrison Botlord-Mutant | -5/Factory Botlord-Mutant | -5/Garrison Botlord-Mutant | -4/Factory Botlord-Mutant | -4/Garrison Botlord-Mutant | -3/Research Botlord-Mutant | -3/Garrison Resources | -11 -10 -10 -10 -9 -8 -8 -7 -7 -7 -6 -6 -5 -5 -5 -5 -4 -4 -3 -3 ----------- Run | Scr Mat Min Exi Min Mat Gar Fac Gar Fac Fac Gar Fac Gar Fac Gar Fac Gar Res Gar Matter Collected 3024 | 199 . 59 . 60 172 297 478 264 . 100 286 . 334 17 158 118 102 . 380 Remotely . | . . . . . . . . . . . . . . . . . . . . Salvage Created 4088 | . . 74 . 229 887 552 797 322 . 165 333 . 197 21 . . 252 . 259 Parts 226 | . . . . 14 53 36 34 18 . 16 21 . 4 3 . . 10 . 17 Haulers Intercepted . | . . . . . . . . . . . . . . . . . . . . Recyclers Shooed 6 | . . . . . 1 . 4 . . . . . . . . 1 . . . Parts Field Recycled . | . . . . . . . . . . . . . . . . . . . . Retrieved Matter . | . . . . . . . . . . . . . . . . . . . . Parts Self-Destructed . | . . . . . . . . . . . . . . . . . . . . Prevented . | . . . . . . . . . . . . . . . . . . . . Kills | -11 -10 -10 -10 -9 -8 -8 -7 -7 -7 -6 -6 -5 -5 -5 -5 -4 -4 -3 -3 ------- Run | Scr Mat Min Exi Min Mat Gar Fac Gar Fac Fac Gar Fac Gar Fac Gar Fac Gar Res Gar Combat Hostiles Destroyed 93 | . . 6 . 5 21 18 16 6 . 5 5 . 1 . . . 4 . 6 Melee 17 | . . . . . . 1 . 3 . 1 4 . 1 . . . 4 . 3 Guns 39 | . . 6 . 5 12 5 5 3 . . . . . . . . . . 3 Cannons 23 | . . . . . 8 4 11 . . . . . . . . . . . . AOE 13 | . . . . . . 8 . . . 4 1 . . . . . . . . Classes Destroyed 15 | . . 1 . 1 4 2 2 2 . 2 1 . . . . . . . . Worker 4 | . . . . . . . . . . 4 . . . . . . . . . Builder 2 | . . . . . . . . . . 1 . . . 1 . . . . . Operator 2 | . . . . . . . 1 . . 1 . . . . . . . . . Watcher 2 | . . . . . 2 . . . . . . . . . . . . . . Swarmer 26 | . . . . . 7 2 4 3 . 4 3 . . . . . . . 3 Grunt 33 | . . . . 5 6 12 8 . . . . . . . . . 2 . . Brawler 2 | . . . . . . . 1 . . . . . 1 . . . . . . Duelist 1 | . . . . . . . . 1 . . . . . . . . . . . Protector 1 | . . . . . . 1 . . . . . . . . . . . . . Sentry 13 | . . . . . 7 2 3 . . 1 . . . . . . . . . Demolisher 1 | . . . . . . 1 . . . . . . . . . . . . . Specialist 1 | . . . . . . . . 1 . . . . . . . . . . . Hunter 4 | . . . . . 1 . . 1 . . 1 . . . . . . . 1 Programmer 5 | . . . . . . . . . . . 1 . . . . . 2 . 2 Assembled 6 | . . 6 . . . . . . . . . . . . . . . . . Best Kill Streak 8 | . . 3 . 3 5 5 4 2 . 8 3 . 1 1 . . 2 . 3 Combat Bots Only 5 | . . 3 . 3 5 5 4 2 . 4 3 . 1 . . . 2 . 3 Max Kills in Single Turn 5 | . . 1 . 1 1 2 1 1 . 5 1 . 1 1 . . 1 . 1 Gunslinging . | . . . . . . . . . . . . . . . . . . . . Exploded 4 | . . . . . . 2 . . . 4 1 . . . . . . . . Melee 1 | . . . . . . 1 . 1 . 1 1 . 1 . . . 1 . 1 Uniques/NPCs Destroyed . | . . . . . . . . . . . . . . . . . . . . Combat | -11 -10 -10 -10 -9 -8 -8 -7 -7 -7 -6 -6 -5 -5 -5 -5 -4 -4 -3 -3 -------- Run | Scr Mat Min Exi Min Mat Gar Fac Gar Fac Fac Gar Fac Gar Fac Gar Fac Gar Res Gar Damage Taken 12765 | . . 341 . 89 872 1864 1304 1410 . 410 871 57 346 15 275 644 2081 22 2164 Core 3907 | . . 50 . 77 73 367 191 456 . 18 264 20 99 . 59 249 674 22 1288 Absorbed by Shields 25 | . . . . . . . . . . . . . . . . . . . 25 Core Remaining (%) 49 | 100 . . . 49 . 20 . . 7 . 66 . . . 82 . 19 . . Volleys Fired 301 | . 1 18 . . 25 58 68 28 3 2 19 6 13 8 15 11 13 . 13 Largest 2 | . 2 2 . . 1 2 2 1 1 1 1 1 1 1 1 1 1 . 2 Hottest 120 | . 70 70 . . 120 120 120 120 5 39 39 5 7 7 7 7 7 . 75 Shots Fired 418 | . 2 36 . 17 77 59 90 28 3 2 19 6 13 8 15 11 13 . 19 Gun 221 | . 2 36 . 17 52 26 54 18 . . 1 . . . . . . . 15 Cannon 82 | . . . . . 24 21 30 7 . . . . . . . . . . . Launcher 14 | . . . . . . 12 . . . 1 1 . . . . . . . . Special 101 | . . . . . 1 . 6 3 3 1 17 6 13 8 15 11 13 . 4 Kinetic 124 | . 1 18 . . . 26 54 11 . . 1 . . . . . . . 13 Thermal 170 | . 1 18 . 17 76 21 30 7 . . . . . . . . . . . Explosive 14 | . . . . . . 12 . . . 1 1 . . . . . . . . Electromagnetic 9 | . . . . . . . . 7 . . . . . . . . . . 2 Robot Hit Streak 35 | . 1 11 . 9 19 35 24 13 2 4 5 4 17 7 22 7 9 . 6 Robot Miss Streak 3 | . 1 3 . 1 2 1 2 3 1 . 1 2 . 1 . 2 2 . 3 Penetration Max . | . . . . . . . . . . . . . . . . . . . . Secondary Targets 3 | . . 2 . . . . 1 . . . . . . . . . . . . Max Gunslinging Chain 1 | . . 1 . . . . 1 . . . . . . . . . . . . Autonomous 70 | . . . . 17 53 . . . . . . . . . . . . . . Shots Hit Robots 385 | . 1 24 . 15 59 41 67 22 2 12 34 5 23 8 16 9 26 . 21 Core Hits 159 | . . 12 . 7 26 33 30 9 . 11 10 . 4 1 . . 5 . 11 Critical Kills 1 | . . . . . . . . . . . . . . . . . . . 1 Critical Parts Destroyed . | . . . . . . . . . . . . . . . . . . . . Critical Strikes 6 | . . 1 . . . . . . . 1 1 . 1 . . . . . 2 Burn 1 | . . 1 . . . . . . . . . . . . . . . . . Destroy 1 | . . . . . . . . . . . . . . . . . . . 1 Sever 4 | . . . . . . . . . . 1 1 . 1 . . . . . 1 Melee Attacks 151 | . . . . . . 7 . 12 . 11 43 1 24 1 11 2 27 . 12 Impact . | . . . . . . . . . . . . . . . . . . . . Slashing 150 | . . . . . . 7 . 12 . 11 43 1 24 1 11 2 26 . 12 Piercing . | . . . . . . . . . . . . . . . . . . . . Sneak Attacks 8 | . . . . . . . . . . 3 1 1 1 1 . . . . 1 Combat Hostiles 2 | . . . . . . . . . . . . . 1 . . . . . 1 Follow-up Attacks . | . . . . . . . . . . . . . . . . . . . . Damage Inflicted 11587 | . 14 317 . 445 2130 1746 1694 788 . 1200 1092 82 537 80 34 50 736 . 642 Guns 3420 | . 14 309 . 438 1266 324 637 282 . . . . . . . . . . 150 Cannons 2575 | . . . . . 864 458 1027 226 . . . . . . . . . . . Explosions 1675 | . . . . . . 900 . . . 713 62 . . . . . . . . Melee 3860 | . . . . . . 63 . 280 . 487 1030 82 537 80 34 44 736 . 487 Ramming 57 | . . 8 . 7 . 1 30 . . . . . . . . 6 . . 5 Kinetic 1441 | . 14 146 . . . 324 637 170 . . . . . . . . . . 150 Thermal 4442 | . . 163 . 438 2130 458 1027 226 . . . . . . . . . . . Explosive 1675 | . . . . . . 900 . . . 713 62 . . . . . . . . Electromagnetic 112 | . . . . . . . . 112 . . . . . . . . . . . Impact . | . . . . . . . . . . . . . . . . . . . . Slashing 3860 | . . . . . . 63 . 280 . 487 1030 82 537 80 34 44 736 . 487 Piercing . | . . . . . . . . . . . . . . . . . . . . Highest Corruption 6 | . . . . . 1 6 . . . . 1 . . . 1 . 2 . . Average Corruption 1 | . . . . . 1 2 . . . . 1 . . . 1 . 1 . . Corruption Purged . | . . . . . . . . . . . . . . . . . . . . Corruption Blocked . | . . . . . . . . . . . . . . . . . . . . Effects 21 | . . . . . . 13 . . . . 1 . . . 3 . 4 . . Message Errors 3 | . . . . . . 1 . . . . . . . . 1 . 1 . . Matter Fused 5 | . . . . . . 2 . . . . . . . . 1 . 2 . . Heat Flow Errors 5 | . . . . . . 4 . . . . . . . . . . 1 . . Energy Discharges 4 | . . . . . . 2 . . . . 1 . . . 1 . . . . Data Loss (minor) 2 | . . . . . . 2 . . . . . . . . . . . . . Data Loss (major) 1 | . . . . . . 1 . . . . . . . . . . . . . Alerts 1 | . . . . . . 1 . . . . . . . . . . . . . Overload Shots . | . . . . . . . . . . . . . . . . . . . . Overflow Damage 539 | . . . . . 27 60 45 26 . 125 111 52 1 . 26 . 66 . . Projectiles 128 | . . . . . 27 30 45 26 . . . . . . . . . . . Explosions 127 | . . . . . . 30 . . . 97 . . . . . . . . . Melee 284 | . . . . . . . . . . 28 111 52 1 . 26 . 66 . . Knockbacks 1 | . . . . 1 . . . . . . . . . . . . . . . Impact 1 | . . . . 1 . . . . . . . . . . . . . . . Kinetic . | . . . . . . . . . . . . . . . . . . . . Secondary . | . . . . . . . . . . . . . . . . . . . . Self-Inflicted Damage 86 | . . . . . . 81 . . . . . . . . . 3 . . 2 Shots 6 | . . . . . . 6 . . . . . . . . . . . . . Rammed 13 | . . . . 4 1 . 6 . . . . . . . . 1 . . 1 Targets Rammed 16 | . . 2 . 4 1 1 6 . . . . . . . . 1 . . 1 Kicked 2 | . . 2 . . . . . . . . . . . . . . . . . Crushed 1 | . . . . . . 1 . . . . . . . . . . . . . Highest Temperature 372 | . 9 89 . . 335 372 324 196 . . . . . . . . 120 . . Average Temperature 100 | . 6 43 . . 121 130 94 62 . . . . . . . . 60 . . Received Heat Transfer 2236 | . . 100 . 48 270 837 366 27 . 42 36 27 45 . 60 48 303 . 27 Effects 5 | . . . . . . 3 2 . . . . . . . . . . . . Interference 4 | . . . . . . 2 2 . . . . . . . . . . . . Damage (minor) 1 | . . . . . . 1 . . . . . . . . . . . . . Siege Activations . | . . . . . . . . . . . . . . . . . . . . Robots Corrupted . | . . . . . . . . . . . . . . . . . . . . Combat Hostiles . | . . . . . . . . . . . . . . . . . . . . Parts Fried 1 | . . . . . . . . 1 . . . . . . . . . . . Impact Corruptions . | . . . . . . . . . . . . . . . . . . . . Robots Melted 1 | . . . . . 1 . . . . . . . . . . . . . . Combat Hostiles 1 | . . . . . 1 . . . . . . . . . . . . . . Parts Melted 17 | . . . . . 6 3 5 2 . . 1 . . . . . . . . Heat Transferred 8460 | . . 555 . 555 3548 1002 2320 480 . . . . . . . . . . . Parts Sabotaged 8 | . . . . . . . . . . . . . 8 . . . . . . Parts Stolen . | . . . . . . . . . . . . . . . . . . . . Parts Stripped . | . . . . . . . . . . . . . . . . . . . . Power Chain Reactions . | . . . . . . . . . . . . . . . . . . . . Missiles Intercepted . | . . . . . . . . . . . . . . . . . . . . Alert | -11 -10 -10 -10 -9 -8 -8 -7 -7 -7 -6 -6 -5 -5 -5 -5 -4 -4 -3 -3 ------- Run | Scr Mat Min Exi Min Mat Gar Fac Gar Fac Fac Gar Fac Gar Fac Gar Fac Gar Res Gar Peak Influence 1335 | . . 15 . 126 582 835 644 513 299 214 711 467 1335 801 707 521 366 85 286 Initial 700 | . . . . . 48 340 438 317 263 146 142 373 326 700 210 371 224 70 63 Average 436 | . . 6 . 77 377 582 479 443 283 171 386 425 935 687 504 417 275 72 140 Maximum Alert Level 4 | . . . . . 2 3 2 2 1 1 3 2 4 3 3 2 1 . 1 Low Security (%) 19 | . 100 100 . 100 17 . . . . 75 6 . . . 5 1 19 100 82 Level 1 23 | . . . . . 22 5 4 27 100 24 65 21 18 9 22 43 80 . 17 Level 2 42 | . . . . . 60 60 95 72 . . 20 78 14 1 67 54 . . . Level 3 7 | . . . . . . 34 . . . . 7 . 3 88 5 . . . . Level 4 6 | . . . . . . . . . . . . . 63 . . . . . . Level 5 . | . . . . . . . . . . . . . . . . . . . . High Security . | . . . . . . . . . . . . . . . . . . . . Max Security . | . . . . . . . . . . . . . . . . . . . . Squads Dispatched 14 | . . . . . 3 . 5 . . 1 . . . 2 . 3 . . . Investigation 5 | . . . . . 3 . 1 . . 1 . . . . . . . . . Extermination 3 | . . . . . . . 2 . . . . . . 1 . . . . . Reinforcement 4 | . . . . . . . 1 . . . . . . 1 . 2 . . . Assault 1 | . . . . . . . . . . . . . . . . 1 . . . Garrison 1 | . . . . . . . 1 . . . . . . . . . . . . Intercept . | . . . . . . . . . . . . . . . . . . . . Searches Triggered . | . . . . . . . . . . . . . . . . . . . . Construction Impeded 1 | . . . . . . . . . . . . . . . . 1 . . . Haulers Reinforced . | . . . . . . . . . . . . . . . . . . . . Active Scanning Responses . | . . . . . . . . . . . . . . . . . . . . Cargo Convoy Interrupts . | . . . . . . . . . . . . . . . . . . . . Stealth | -11 -10 -10 -10 -9 -8 -8 -7 -7 -7 -6 -6 -5 -5 -5 -5 -4 -4 -3 -3 --------- Run | Scr Mat Min Exi Min Mat Gar Fac Gar Fac Fac Gar Fac Gar Fac Gar Fac Gar Res Gar Distress Signals 4 | . . . . 1 1 . 2 . . . . . . . . . . . . Communications Jammed . | . . . . . . . . . . . . . . . . . . . . Distress Signals . | . . . . . . . . . . . . . . . . . . . . Times Spotted 275 | . . 8 . 4 30 19 39 12 1 10 29 3 31 7 22 18 24 2 16 Peak Tracking Total 11 | . . 3 . 2 4 7 6 6 1 5 7 1 11 5 5 6 5 2 5 Tactical Retreats 7 | . . 1 . . 1 2 1 2 . . . . . . . . . . . Traps | -11 -10 -10 -10 -9 -8 -8 -7 -7 -7 -6 -6 -5 -5 -5 -5 -4 -4 -3 -3 ------- Run | Scr Mat Min Exi Min Mat Gar Fac Gar Fac Fac Gar Fac Gar Fac Gar Fac Gar Res Gar Traps Triggered 21 | . . . . . 2 1 2 1 . . 1 . 2 . 6 . 2 . 4 Indirectly . | . . . . . . . . . . . . . . . . . . . . Trap Hack Attempts . | . . . . . . . . . . . . . . . . . . . . Triggered . | . . . . . . . . . . . . . . . . . . . . Disarmed . | . . . . . . . . . . . . . . . . . . . . Reprogrammed . | . . . . . . . . . . . . . . . . . . . . Reused 2 | . . . . . . 2 . . . . . . . . . . . . . Traps Extracted . | . . . . . . . . . . . . . . . . . . . . Installed 2 | . . . . . . 2 . . . . . . . . . . . . . Triggered 2 | . . . . . . 2 . . . . . . . . . . . . . Most Traps Carried 4 | . . 4 4 4 4 3 . . . . . . . . . . . . . Machines | -11 -10 -10 -10 -9 -8 -8 -7 -7 -7 -6 -6 -5 -5 -5 -5 -4 -4 -3 -3 ---------- Run | Scr Mat Min Exi Min Mat Gar Fac Gar Fac Fac Gar Fac Gar Fac Gar Fac Gar Res Gar Machines Disabled 29 | . . . . . 3 2 1 2 . 4 7 . 2 . 3 2 1 . 2 Max in Single Turn 3 | . . . . . 1 1 . 1 . 3 1 . 1 . 1 . 1 . 1 Garrison Relay 15 | . . . . . . 2 . 1 . . 5 . 2 . 2 . 1 . 2 Machines Sabotaged . | . . . . . . . . . . . . . . . . . . . . Garrisons Compromised . | . . . . . . . . . . . . . . . . . . . . Overloaded Fab Kills . | . . . . . . . . . . . . . . . . . . . . Hacking | -11 -10 -10 -10 -9 -8 -8 -7 -7 -7 -6 -6 -5 -5 -5 -5 -4 -4 -3 -3 --------- Run | Scr Mat Min Exi Min Mat Gar Fac Gar Fac Fac Gar Fac Gar Fac Gar Fac Gar Res Gar Machines Accessed 43 | . 1 . 1 . 9 . 6 1 3 6 2 2 1 4 3 1 1 1 1 Terminals 32 | . 1 . . . 8 . 3 1 3 5 2 . 1 3 3 . 1 . 1 Fabricators 3 | . . . . . . . 2 . . . . 1 . . . . . . . Repair Stations . | . . . . . . . . . . . . . . . . . . . . Recycling Units . | . . . . . . . . . . . . . . . . . . . . Scanalyzers . | . . . . . . . . . . . . . . . . . . . . Garrison Access 7 | . . . . . 1 . 1 . . 1 . 1 . 1 . 1 . 1 . Total Hacks 87 | . 2 . 1 . 22 . 12 2 9 9 3 4 2 8 7 1 3 1 1 Successful 46 | . . . 1 . 10 . 7 . 5 6 2 4 . 5 3 1 . 1 1 Failed 41 | . 2 . . . 12 . 5 2 4 3 1 . 2 3 4 . 3 . . Catastrophic 9 | . . . . . 3 . 1 . 1 2 . . . 2 . . . . . Database Lockouts . | . . . . . . . . . . . . . . . . . . . . Manual 62 | . 2 . 1 . 21 . 8 2 7 7 2 2 2 6 2 . . . . Terminals 71 | . 2 . . . 21 . 6 2 9 8 3 . 2 7 7 . 3 . 1 Fabricators 5 | . . . . . . . 4 . . . . 1 . . . . . . . Repair Stations . | . . . . . . . . . . . . . . . . . . . . Recycling Units . | . . . . . . . . . . . . . . . . . . . . Scanalyzers . | . . . . . . . . . . . . . . . . . . . . Garrison Access 10 | . . . . . 1 . 2 . . 1 . 3 . 1 . 1 . 1 . Terminal Hacks 18 | . . . 1 . 3 . . . 4 3 2 . . 1 3 . . . 1 Robot Schematic 1 | . . . . . . . . . 1 . . . . . . . . . . Prototype ID Bank 1 | . . . . . . . . . . 1 . . . . . . . . . Open Door 2 | . . . . . . . . . . . 1 . . . 1 . . . . Level Access Points 1 | . . . . . . . . . 1 . . . . . . . . . . Emergency Access Points 1 | . . . . . . . . . . . . . . . 1 . . . . Terminal Index 4 | . . . . . 1 . . . 1 1 . . . 1 . . . . . Garrison Index 3 | . . . . . 1 . . . 1 1 . . . . . . . . . Zone Layout 1 | . . . . . 1 . . . . . . . . . . . . . . Garrison Registry 3 | . . . . . . . . . . . 1 . . . 1 . . . 1 EX-Prototype ID Bank 1 | . . . 1 . . . . . . . . . . . . . . . . Fabricator Hacks 2 | . . . . . . . 1 . . . . 1 . . . . . . . Network Status 1 | . . . . . . . 1 . . . . . . . . . . . . Build 1 | . . . . . . . . . . . . 1 . . . . . . . Repair Station Hacks . | . . . . . . . . . . . . . . . . . . . . Recycling Unit Hacks . | . . . . . . . . . . . . . . . . . . . . Scanalyzer . | . . . . . . . . . . . . . . . . . . . . Garrison Access Hacks 7 | . . . . . 1 . 1 . . 1 . 1 . 1 . 1 . 1 . Unlock Access 7 | . . . . . 1 . 1 . . 1 . 1 . 1 . 1 . 1 . Unauthorized Hacks 19 | . . . . . 6 . 5 . 1 2 . 2 . 3 . . . . . Terminals 15 | . . . . . 6 . 3 . 1 2 . . . 3 . . . . . Track 1 | . . . . . . . 1 . . . . . . . . . . . . Assimilate 1 | . . . . . 1 . . . . . . . . . . . . . . Botnet 8 | . . . . . 4 . 1 . . 1 . . . 2 . . . . . Operators 5 | . . . . . 1 . 1 . 1 1 . . . 1 . . . . . Fabricators 1 | . . . . . . . 1 . . . . . . . . . . . . Liberate 1 | . . . . . . . 1 . . . . . . . . . . . . Repair Stations . | . . . . . . . . . . . . . . . . . . . . Recycling Units . | . . . . . . . . . . . . . . . . . . . . Scanalyzers . | . . . . . . . . . . . . . . . . . . . . Garrison Access 3 | . . . . . . . 1 . . . . 2 . . . . . . . Broadcast 1 | . . . . . . . . . . . . 1 . . . . . . . Restock 1 | . . . . . . . 1 . . . . . . . . . . . . Reprogram 1 | . . . . . . . . . . . . 1 . . . . . . . Data Cores Recovered 1 | . . . . . . . . . . 1 . . . . . . . . . Used 1 | . . . . . . . . . . 1 . . . . . . . . . Hacking Detections 35 | . 1 . . . 8 . 5 1 3 5 2 1 1 3 2 . 1 1 1 Full Trace Events 5 | . . . . . 2 . . . . 1 . . 1 . . . 1 . . Feedback Events 1 | . . . . . 1 . . . . . . . . . . . . . . Corruption 1 | . . . . . 1 . . . . . . . . . . . . . . Feedback Blocked . | . . . . . . . . . . . . . . . . . . . . Robot Schematics Acquired 1 | . . . . . . . . . 1 . . . . . . . . . . Robots Built . | . . . . . . . . . . . . . . . . . . . . Authchips . | . . . . . . . . . . . . . . . . . . . . Time 84 | . . . . . . . . . . . . 84 . . . . . . . Total Robot Build Rating . | . . . . . . . . . . . . . . . . . . . . Part Schematics Acquired . | . . . . . . . . . . . . . . . . . . . . Parts Built . | . . . . . . . . . . . . . . . . . . . . Authchips . | . . . . . . . . . . . . . . . . . . . . Time . | . . . . . . . . . . . . . . . . . . . . Total Part Build Rating . | . . . . . . . . . . . . . . . . . . . . Parts Repaired . | . . . . . . . . . . . . . . . . . . . . Time . | . . . . . . . . . . . . . . . . . . . . Parts Recycled . | . . . . . . . . . . . . . . . . . . . . Recycled Matter . | . . . . . . . . . . . . . . . . . . . . Retrieved Matter . | . . . . . . . . . . . . . . . . . . . . Retrieved Components . | . . . . . . . . . . . . . . . . . . . . Parts Scanalyzed . | . . . . . . . . . . . . . . . . . . . . Part Schematics Acquired . | . . . . . . . . . . . . . . . . . . . . Parts Damaged . | . . . . . . . . . . . . . . . . . . . . Bothacking | -11 -10 -10 -10 -9 -8 -8 -7 -7 -7 -6 -6 -5 -5 -5 -5 -4 -4 -3 -3 ------------ Run | Scr Mat Min Exi Min Mat Gar Fac Gar Fac Fac Gar Fac Gar Fac Gar Fac Gar Res Gar Used RIF Installer 7 | . . . . . . 2 . 1 . . 2 . 1 . 1 . . . . Hotswap 1 | . . . . . . . . . . . . . 1 . . . . . . Command Fork 2 | . . . . . . . . 1 . . 1 . . . . . . . . Signal Jammer 1 | . . . . . . . . . . . 1 . . . . . . . . Patrol Navigation 1 | . . . . . . . . . . . . . . . 1 . . . . Program Shield 1 | . . . . . . 1 . . . . . . . . . . . . . Robots Hacked 64 | . . . . . . . 1 3 1 1 12 4 13 2 13 5 7 . 2 Non-combat 6 | . . . . . . . . . 1 1 . 2 . 1 . 1 . . . Combat 58 | . . . . . . . 1 3 . . 12 2 13 1 13 4 7 . 2 Robot Hacks Applied 70 | . . . . . . . 1 3 1 1 12 4 13 6 13 5 8 . 3 drop_inventory 1 | . . . . . . . . . . . . 1 . . . . . . . purge_threat 5 | . . . . . . . . . . . . . . 5 . . . . . block_reporting 1 | . . . . . . . . . . 1 . . . . . . . . . map_route 2 | . . . . . . . . . . . . 1 . . . 1 . . . find_garrison 1 | . . . . . . . . . . . . 1 . . . . . . . reboot_system 5 | . . . . . . . . . . . 1 . 1 . 1 . . . 2 overwrite_iff 14 | . . . . . . . . 3 . . 2 . 2 . 3 1 3 . . streamctrl_high 1 | . . . . . . . . . . . . . . . 1 . . . . formatsys_high 40 | . . . . . . . 1 . 1 . 9 1 10 1 8 3 5 . 1 Relay Couplers Released 63 | . . . . . . 7 . 7 . . 21 . 8 . 9 . 3 . 8 Machine Destruction 60 | . . . . . . 7 . 4 . . 21 . 8 . 9 . 3 . 8 Programmers 3 | . . . . . . . . 3 . . . . . . . . . . . Attached 39 | . . . . . . 2 1 3 2 1 5 1 7 . 1 1 7 . 8 Fabnet Peak Effective % . | . . . . . . . . . . . . . . . . . . . . Robots Rewired 11 | . . . . . . . . . . . . . 7 . . . . . 4 Allies Hacked 4 | . . . . . . . . 1 . . . . . . 1 2 . . . Hacks Repelled . | . . . . . . . . . . . . . . . . . . . . Allies | -11 -10 -10 -10 -9 -8 -8 -7 -7 -7 -6 -6 -5 -5 -5 -5 -4 -4 -3 -3 -------- Run | Scr Mat Min Exi Min Mat Gar Fac Gar Fac Fac Gar Fac Gar Fac Gar Fac Gar Res Gar Total Allies 99 | . . . . . 1 . 8 5 1 . 19 1 24 1 17 5 12 . 5 Largest Group 22 | . . . . . 1 1 5 4 1 1 12 12 21 22 17 14 4 . 2 Highest-Rated Group 804 | . . . . . 90 90 138 119 26 26 427 427 775 804 595 569 154 . 100 Highest-Rated Ally 90 | . . . . . 90 90 90 55 26 26 47 47 49 49 49 56 56 . 56 Total Orders 2 | . . . . . . . . . . . 2 . . . . . . . . STAY 1 | . . . . . . . . . . . 1 . . . . . . . . FOLLOW 1 | . . . . . . . . . . . 1 . . . . . . . . Ally Attacks 571 | . . . . . 14 3 37 19 . . 57 37 82 22 149 57 64 . 30 Total Damage 14977 | . . . . . 608 93 803 580 . . 1395 758 2369 443 3385 1854 1531 . 1158 Kills 90 | . . . . . 3 1 9 4 . . 6 5 22 1 16 13 5 . 5 Allies Corrupted 6 | . . . . . . . . . . . . 1 . . 2 . 2 . 1 Allies Melted . | . . . . . . . . . . . . . . . . . . . . Field Lobotomies 5 | . . . . . 1 . 4 . . . . . . . . . . . . Intel | -11 -10 -10 -10 -9 -8 -8 -7 -7 -7 -6 -6 -5 -5 -5 -5 -4 -4 -3 -3 ------- Run | Scr Mat Min Exi Min Mat Gar Fac Gar Fac Fac Gar Fac Gar Fac Gar Fac Gar Res Gar Robot Analysis Total . | . . . . . . . . . . . . . . . . . . . . Derelict Logs Recovered 1 | . . . . 1 . . . . . . . . . . . . . . . Drone Launches . | . . . . . . . . . . . . . . . . . . . . Drone Recoveries . | . . . . . . . . . . . . . . . . . . . . Exploration | -11 -10 -10 -10 -9 -8 -8 -7 -7 -7 -6 -6 -5 -5 -5 -5 -4 -4 -3 -3 ------------- Run | Scr Mat Min Exi Min Mat Gar Fac Gar Fac Fac Gar Fac Gar Fac Gar Fac Gar Res Gar Turns Passed 10466 | . 79 688 266 156 876 1047 1650 585 152 540 860 214 1016 305 719 418 470 14 411 Spaces Moved 6361 | 1 64 375 221 125 566 535 886 314 104 386 576 141 497 179 540 339 273 27 212 Core 165 | . . . . . . 2 . 16 . . . . . . . . 48 27 72 Treads 2485 | . . . . 21 339 533 886 186 . . . . 374 146 . . . . . Legs 1289 | 1 64 375 112 . . . . 112 104 386 32 . . . . . . . 103 Wheels 2385 | . . . 109 104 227 . . . . . 544 141 123 33 540 339 225 . . Hover 11 | . . . . . . . . . . . . . . . . . . . 11 Flight 26 | . . . . . . . . . . . . . . . . . . . 26 Fastest Speed 40 | 120 120 120 95 95 95 150 145 50 120 120 90 120 120 130 110 110 50 50 40 Average Speed 132 | 120 120 120 114 105 134 162 158 139 120 125 104 120 167 156 113 110 115 50 101 Slowest Speed 330 | 120 120 120 120 160 240 165 250 190 120 190 190 120 330 162 130 110 150 50 200 Overloaded Moves . | . . . . . . . . . . . . . . . . . . . . Propulsion Burnouts . | . . . . . . . . . . . . . . . . . . . . Robots Hopped . | . . . . . . . . . . . . . . . . . . . . Cave-ins Triggered 1 | . . . . . . 1 . . . . . . . . . . . . . Exploration Rate (%) 33 | 3 22 84 60 26 75 41 26 40 4 14 67 7 61 8 65 10 38 2 20 Regions Visited 19 Branch Regions 3 Pre-discovered Areas 1 | . . . . 1 . . . . . . . . . . . . . . . Known Exits Taken 8 | . . . . . 1 . 1 . 1 1 . 1 . 1 . 1 . 1 . Unknown Exits Taken 5 | 1 1 1 1 1 . . . . . . . . . . . . . . . Scrap Searched 2 | . . . . 2 . . . . . . . . . . . . . . . Spaces Dug 9 | . . . . . . 1 1 . . . . . 2 . 3 1 1 . . Terrain Destroyed 80 | . . . . 2 4 45 1 . . 3 17 . 2 . 3 1 1 . 1 Melee 7 | . . . . . . . . . . . . . 2 . 3 1 1 . . Projectile 11 | . . . . 2 4 3 1 . . . . . . . . . . . 1 AOE 62 | . . . . . . 42 . . . 3 17 . . . . . . . . Terrain Rammed . | . . . . . . . . . . . . . . . . . . . . Walls Destroyed . | . . . . . . . . . . . . . . . . . . . . Machines Disabled . | . . . . . . . . . . . . . . . . . . . . Actions | -11 -10 -10 -10 -9 -8 -8 -7 -7 -7 -6 -6 -5 -5 -5 -5 -4 -4 -3 -3 --------- Run | Scr Mat Min Exi Min Mat Gar Fac Gar Fac Fac Gar Fac Gar Fac Gar Fac Gar Res Gar Total 7863 | . 64 577 237 146 654 638 1036 408 129 421 758 182 633 201 627 376 384 27 365 Wait 486 | . . 177 . 17 28 2 42 13 15 12 56 27 24 8 19 16 27 . 3 Move 6347 | . 63 374 220 124 566 534 886 313 103 386 575 140 496 179 539 339 271 27 212 Hop . | . . . . . . . . . . . . . . . . . . . . Pick Up 91 | . . 4 5 . 5 10 1 5 2 2 24 2 10 . 10 2 6 . 3 Fast Attach 103 | . . . . 1 9 10 14 15 1 3 8 1 10 1 . 3 4 . 23 Attach 55 | . . 1 4 . 5 3 2 1 2 1 6 3 8 . 1 2 14 . 2 Detach 5 | . . . . . . . . . . . 3 . . . . . 2 . . Swap 43 | . . . 1 . 5 3 10 10 1 3 6 . . . 1 . 1 . 2 Drop 71 | . . 1 7 . 10 8 7 10 2 1 7 2 1 2 2 . 4 . 7 Fire 301 | . 1 18 . . 25 58 68 28 3 2 19 6 13 8 15 11 13 . 13 Melee 149 | . . . . . . 7 . 12 . 11 43 1 24 1 11 2 25 . 12 Ram 2 | . . . . . . . . . . . . . . . . 1 . . 1 Kick 2 | . . 2 . . . . . . . . . . . . . . . . . Crush 12 | . . . . 4 1 1 6 . . . . . . . . . . . . Escape Stasis 81 | . . . . . . . . . . . 8 . 4 . 24 . 16 . 29 Rewire 113 | . . . . . . . . 1 . . 3 . 43 2 5 . 1 . 58 Trap 2 | . . . . . . 2 . . . . . . . . . . . . . Miscellaneous . | . . . . . . . . . . . . . . . . . . . . Route ------- -11/Scrapyard -10/Materials -10/Mines (discovered 3 exits: [*Mat x2] / *Exi) -10/Exiles (discovered 2 exits: [*Min x2]) -9/Mines -8/Materials (discovered 4 exits: *Fac x3 / Gar) -8/Garrison (discovered 2 exits: *Fac / [*Mat]) -7/Factory (discovered 2 exits: [*Sto] / Gar) -7/Garrison -7/Factory (discovered 4 exits: *Fac x4) -6/Factory -6/Garrison (discovered 3 exits: *Fac x3) -5/Factory -5/Garrison (discovered 3 exits: *Fac x3) -5/Factory -5/Garrison (discovered 3 exits: *Fac x3) -4/Factory -4/Garrison -3/Research -3/Garrison (discovered 3 exits: [Res x3]) History --------- Turn | Location | Event 1 | -11/Scrapyard | Discovered new exit (range 0) 1 | -11/Scrapyard | Entered Materials 62 | -10/Materials | Discovered new exit (range 16) 80 | -10/Materials | Entered Mines 110 | -10/Mines | Discovered new exit (range 12) 190 | -10/Mines | Discovered new exit (range 10) 231 | -10/Mines | Assembled infested the area 305 | -10/Mines | Build established: Mutant 699 | -10/Mines | Found a hidden stash of uninstalled traps 763 | -10/Mines | Deemed a non-threat by the Exiles lab entrance 763 | -10/Mines | Discovered new exit (range 5) 768 | -10/Mines | Entered Exiles 788 | -10/Exiles | Discovered new exit (range 15) 798 | -10/Exiles | Met 8R-AWN 819 | -10/Exiles | Met EX-HEX 850 | -10/Exiles | Met EX-BIN 864 | -10/Exiles | Aligned with FarCom system 866 | -10/Exiles | Given EX-Vault access code 898 | -10/Exiles | Opened EX-Vault 907 | -10/Exiles | Found AWS/Thermal 910 | -10/Exiles | Found Field Lobotomy Kit 916 | -10/Exiles | Found Gui. Plasma Cannon 945 | -10/Exiles | Warned to stay clear of 0b10 Research branches 980 | -10/Exiles | Met EX-DEC 1016 | -10/Exiles | Discovered new exit (range 14) 1034 | -10/Exiles | Stole three prototypes: AWS/Thermal, Field Lobotomy Kit, Gui. Plasma Cannon 1034 | -10/Exiles | Entered Mines 1098 | -9/Mines | Learned location of Zion (-7) 1172 | -9/Mines | Core integrity fell below 50% 1176 | -9/Mines | Discovered new exit (range 8) 1190 | -9/Mines | Entered Materials 1190 | -8/Materials | Evolved 4 slots: Propulsion x2, Utility x2 1549 | -8/Materials | Discovered new exit (range 5) 1695 | -8/Materials | Assimilated H-61 Shepherd with FLK Orb 1901 | -8/Materials | Discovered new exit (range 13) 2053 | -8/Materials | Discovered new exit (range 15) 2066 | -8/Materials | Identified exit to Garrison 2066 | -8/Materials | Entered Garrison 2066 | -8/Garrison | Accompanied by 1 ally 2096 | -8/Garrison | Triggered checkpoint 2124 | -8/Garrison | Garrison Relay disabled 2174 | -8/Garrison | Triggered checkpoint 2202 | -8/Garrison | Build established: Hacker-Mutant 2208 | -8/Garrison | Discovered new exit (range 6) 2225 | -8/Garrison | Core integrity fell below 50% 2271 | -8/Garrison | Lost 5 parts (1p3n1w) 2559 | -8/Garrison | Build established: Scavenger-Mutant 2616 | -8/Garrison | Triggered checkpoint 2740 | -8/Garrison | Crushed by falling debris 2785 | -8/Garrison | Lost 4 parts (1p1n2u) 2796 | -8/Garrison | Triggered checkpoint 2843 | -8/Garrison | Discovered new exit (range 15) 2904 | -8/Garrison | Triggered checkpoint 2939 | -8/Garrison | Installed Relay Interface Framework 2965 | -8/Garrison | Garrison Relay disabled 3101 | -8/Garrison | Expanded RIF knowledge: Program Shield 3113 | -8/Garrison | Entered Factory 3113 | -7/Factory | Evolved 2 slots: Utility x2 3115 | -7/Factory | FarCom data flow suspended 3648 | -7/Factory | Discovered new exit (range 6) 3723 | -7/Factory | Build established: Mutant 3906 | -7/Factory | Assimilated P-60 Hacker with FLK Orb 3993 | -7/Factory | Assimilated H-61 Shepherd with FLK Orb 4342 | -7/Factory | Garrison activated, responded to threat 4403 | -7/Factory | Assimilated P-70 Sage with FLK Orb 4430 | -7/Factory | Assimilated H-55 Commando with FLK Orb 4763 | -7/Factory | Identified exit to Garrison 4763 | -7/Factory | Entered Garrison 4763 | -7/Garrison | Accompanied by 2 allies 4814 | -7/Garrison | Triggered checkpoint 4836 | -7/Garrison | Expanded RIF knowledge: Command Fork 4850 | -7/Garrison | Sage 4a assimilated hostile Y-54 Guardian 4857 | -7/Garrison | Garrison Relay disabled 5032 | -7/Garrison | Triggered checkpoint 5099 | -7/Garrison | Lost 3 parts (1p1n1w) 5139 | -7/Garrison | Core integrity fell below 50% 5167 | -7/Garrison | Core integrity fell below 20% 5172 | -7/Garrison | Build established: Bothacker-Mutant 5200 | -7/Garrison | Lost 10 parts (1p3n4u2w) 5306 | -7/Garrison | Discovered new exit (range 14) 5348 | -7/Garrison | Entered Factory 5405 | -7/Factory | Identified exit to Factory 5500 | -7/Factory | Entered another Factory area 5500 | -6/Factory | Accompanied by 1 ally 5500 | -6/Factory | Evolved 2 slots: Utility x2 6040 | -6/Factory | Identified exit to Garrison 6040 | -6/Factory | Entered Garrison 6076 | -6/Garrison | Triggered checkpoint 6185 | -6/Garrison | Expanded RIF knowledge: Signal Jamming 6192 | -6/Garrison | Garrison Relay disabled 6252 | -6/Garrison | Discovered new exit (range 41) 6252 | -6/Garrison | Discovered new exit (range 70) 6252 | -6/Garrison | Discovered new exit (range 41) 6303 | -6/Garrison | Rescued a captive Derelict 6303 | -6/Garrison | Rescued a captive Derelict 6340 | -6/Garrison | Triggered checkpoint 6342 | -6/Garrison | Triggered checkpoint 6360 | -6/Garrison | Triggered checkpoint 6380 | -6/Garrison | Triggered checkpoint 6414 | -6/Garrison | Expanded RIF knowledge: Command Fork 6529 | -6/Garrison | Garrison Relay disabled 6636 | -6/Garrison | Triggered checkpoint 6657 | -6/Garrison | Garrison Relay disabled 6676 | -6/Garrison | Triggered checkpoint 6707 | -6/Garrison | Garrison Relay disabled 6727 | -6/Garrison | Heavy support dispatched to Factory 6832 | -6/Garrison | Garrison Relay disabled 6833 | -6/Garrison | Build established: Botlord-Mutant 6900 | -6/Garrison | Entered Factory 6900 | -5/Factory | Accompanied by 12 allies 6900 | -5/Factory | Evolved 2 slots: Utility x2 7077 | -5/Factory | Identified exit to Garrison 7114 | -5/Factory | Entered Garrison 7114 | -5/Garrison | Accompanied by 11 allies 7124 | -5/Garrison | Triggered checkpoint 7135 | -5/Garrison | Discovered new exit (range 6) 7272 | -5/Garrison | Triggered checkpoint 7301 | -5/Garrison | Garrison Relay disabled 7430 | -5/Garrison | Spotted B-75 Beast 7440 | -5/Garrison | Triggered checkpoint 7455 | -5/Garrison | Allies destroyed B-75 Beast 7460 | -5/Garrison | Triggered checkpoint 7464 | -5/Garrison | Triggered checkpoint 7486 | -5/Garrison | Triggered checkpoint 7552 | -5/Garrison | Triggered checkpoint 7636 | -5/Garrison | Discovered new exit (range 12) 7945 | -5/Garrison | Expanded RIF knowledge: Hotswap 7968 | -5/Garrison | Triggered checkpoint 8032 | -5/Garrison | Garrison Relay disabled 8088 | -5/Garrison | Discovered new exit (range 10) 8130 | -5/Garrison | Entered Factory 8130 | -5/Factory | Accompanied by 21 allies 8434 | -5/Factory | Identified exit to Garrison 8435 | -5/Factory | Entered Garrison 8435 | -5/Garrison | Accompanied by 16 allies 8466 | -5/Garrison | Triggered checkpoint 8498 | -5/Garrison | Garrison Relay disabled 8557 | -5/Garrison | Triggered checkpoint 8574 | -5/Garrison | Spotted B-75 Beast 8582 | -5/Garrison | Triggered checkpoint 8592 | -5/Garrison | Allies destroyed B-75 Beast 8618 | -5/Garrison | Triggered checkpoint 8622 | -5/Garrison | Triggered checkpoint 8674 | -5/Garrison | Triggered checkpoint 8715 | -5/Garrison | Garrison Relay disabled 8749 | -5/Garrison | Discovered new exit (range 12) 8790 | -5/Garrison | Expanded RIF knowledge: Patrol Navigation 8900 | -5/Garrison | Discovered new exit (range 13) 8908 | -5/Garrison | Triggered checkpoint 8960 | -5/Garrison | Rescued a captive Derelict 9112 | -5/Garrison | Discovered new exit (range 64) 9112 | -5/Garrison | Discovered new exit (range 51) 9112 | -5/Garrison | Discovered new exit (range 19) 9154 | -5/Garrison | Entered Factory 9154 | -4/Factory | Accompanied by 13 allies 9154 | -4/Factory | Evolved 2 slots: Utility x2 9297 | -4/Factory | Lost 5 parts (1p2u2w) 9404 | -4/Factory | First assault squad dispatched 9511 | -4/Factory | Found Prototype Slashing Weapon 9572 | -4/Factory | Identified exit to Garrison 9572 | -4/Factory | Entered Garrison 9572 | -4/Garrison | Accompanied by 3 allies 9648 | -4/Garrison | Triggered checkpoint 9662 | -4/Garrison | Identified Molecular Scythe 9679 | -4/Garrison | Garrison Relay disabled 9694 | -4/Garrison | Lost 6 parts (1p2n1u2w) 9735 | -4/Garrison | Spotted B-86 Titan 9890 | -4/Garrison | Triggered checkpoint 9902 | -4/Garrison | Triggered checkpoint 9919 | -4/Garrison | Core integrity fell below 50% 9962 | -4/Garrison | Lost 6 parts (1p2n2u1w) 10017 | -4/Garrison | Discovered new exit (range 11) 10041 | -4/Garrison | Core integrity fell below 20% 10042 | -4/Garrison | Entered Research 10042 | -3/Research | Evolved 2 slots: Utility x2 10056 | -3/Research | Identified exit to Garrison 10056 | -3/Research | Entered Garrison 10061 | -3/Garrison | Triggered checkpoint 10068 | -3/Garrison | Lost 5 parts (2n3u) 10134 | -3/Garrison | Triggered checkpoint 10144 | -3/Garrison | Core integrity fell below 50% 10188 | -3/Garrison | Core integrity fell below 20% 10208 | -3/Garrison | Garrison Relay disabled 10215 | -3/Garrison | Lost 8 parts (1n5u2w) 10258 | -3/Garrison | Discovered new exit (range 49) 10258 | -3/Garrison | Discovered new exit (range 67) 10258 | -3/Garrison | Discovered new exit (range 95) 10382 | -3/Garrison | Triggered checkpoint 10414 | -3/Garrison | Garrison Relay disabled 10427 | -3/Garrison | Lost 4 parts (1p2n1u) 10463 | -3/Garrison | Spotted B-86 Titan 10466 | -3/Garrison | Triggered checkpoint 10467 | -3/Garrison | Destroyed by G-67 Veteran with Field Laser Last Messages --------------- 10452_ Dropped Coil Gun. 10452_ Field strength at 10. 10452_ Dropped Arm. Wheel. 10453_ Dropped Myomer Leg. 10453_ Stasis field depleted. 10453_ Rainmaker 8d triggered Stasis Trap. 10453_ A bubble of rippling energy engulfs the area. 10453_ Field strength at 85. 10454_ Field strength at 70. 10455_ Field strength at 55. 10463_ Triggered Stasis Trap. 10463_ A bubble of rippling energy engulfs the area. 10463_ Field strength at 95. 10464_ Field strength at 90. 10465_ Field strength at 75. 10466_ Relay Coupler [Grunt] destroyed. 10466_ Xenon Bombardment Thruster destroyed. 10466_ Field strength at 59. 10466_ Beams of light sweep through the air. An alarm sounds. 10467_ Field strength at 53. Map ----- +----------------------------------------------------+ | ??????????????????????????# #???### ### #???# | | ??????????????????????????# #"#???#"" ###+###### | | ??????????????????????????# ###???#"! ##! | | ########################### #?????#"! ##! | | ^^ [ #?????#"! ##! ## | | [ #?????#"! ##!^ ## | | #### #########=[##%* #######?????#" ++! ## | | ???# #???????# =##% #???????????#" ++! ## | | ???#####???????# ######???????????#" ##! ## | | ???????????????# #????????????????#"" ###+#### | | ???????????????# #????????????????### ### #?# | | ???????????????# #??????????????????###?## ##?# | | ???????????????# #???????????????????????###??# | | ???????????????# #????????????????????????????# | | ???????????????# #?????????????????############ | | ???????????????# #?????????????##### | | ???????????????# #?????????????# + | | ???????????????# #?????????????# ### ###+##### | | ???????????????# #?????????????# #?# #?# #???# | | ???????????????# #?????????????# #?# ### #???# | | ???????????????# #?????????????# #?# + ##### | | ???????????????# #???????????###+### ### + | | ???????????????# #???????????# ## ### ##### | | ???????????????# #??????######""""## ## #???# | | ################ ######## ##+##### | | + @ | | + ^ | | ########################## ## ## ########+# | | ???????????????????????### ## ## ###????# # | | ???????????????????????# " " ###### # | | ???????????????????????# " " + # | | ????????##########?????# " B " ######## | | ????????# #?????# " " + #???? | | #####???#]]]]]]# #?????### ## ## #### #???? | | &&" #???########+######### gg## ## #??# #???? | | &&" #??????????# ^ #### ##### | | """ ##?????????# ^ g + | | ########### ######## ########## | | # ^ #??????##/###""""## #????????# | | # ^ #???????# #?# ## ##???????# | | # ########### #???????# #?####### T#???????# | | # ########### ######### #???????# ##???????# | | ## + #???????# #????????# | | """ ### ## ######+#???????# ########## | | " #?# < ##### #### #?#### ####????# + | | " #?# #???# #??# #?#! # # !#????# ###### ### | | #####?#####???# #??# #?# + + #????# #????# #?# | | ??????????????# #??# #?##/# #/##????# #????# #?# | | ????????####### #### #?# # # #????# ###### ### | | ????????# + #?# !+ +! #????# | +----------------------------------------------------+ Best States ------------- Heat Dissipation 84 Energy Generation 25 Energy Capacity 300 Matter Stores 300 Matter Capacity 300 Sight Range 16 Terrain Scan Density 10 Armor Coverage 600 Evasion (%) 62 Targeting Accuracy 19 Target Analysis 6 Recoil Reduction 4 Offensive Hacking 30 Relay Coupler Types 7 Relay Coupler Value 223 Authchip Count 3 Item Schematics ----------------- None Robot Schematics ------------------ P-60 Hacker | -7/Factory | Hacked Fabricated ------------ Nothing Alien Tech Used ----------------- None Achievements -------------- None Challenges ------------ None Game ------ Seed AluminumAntimissileTreads Manual? 0 Play Time 01:46:59 Cumulative 261.4 hours Start 2022.07.28 @ 12:21:40 End 2022.07.28 @ 17:37:03 Sessions 5 Manual Loads 0 Difficulty Rogue Special Mode None Game No. 308 Rogue 308 Adventurer 0 Explorer 0 Win Type - Total 11 Types 8/0/2/1/0/0/0/0/0 Lore% 70 Gallery% 87 Achievement% 74 Wizard Run 0 Options --------- ASCII 0 Keyboard 0 Movement Numpad Keybinds 0 Fullscreen 1 Font 18/Terminus Map View 76x50 Tactical HUD 1 Map Filters NONE Filters NONE Steam 1 RUN: 26581747-c1c4-4c5e-85ac-d05b154ff955